[Event "Championnat du monde jeunes U10"]
[Date "2024.11.15"]
[White "Sameh Mohamed, Abdalrahman"]
[Black "Ostapenko, Volodymyr"]
[WhiteElo "2238"]
[BlackElo "1720"]
[Round "1.1"]
[Result "1-0"]
[TimeControl "5400+30"]

1. d4 {[%clk 1:30:56]} 1... d5 {[%clk 1:30:40]} 2. e4 {[%clk 1:31:22]} 2... dxe4
{[%clk 1:28:24]} 3. Nc3 {[%clk 1:31:46]} 3... Bf5 {[%clk 1:27:03]} 4. f3 {[%clk
1:32:09]} 4... Nf6 {[%clk 1:23:51]} 5. Bg5 {[%clk 1:31:46]} 5... c5 {[%clk
1:07:44]} 6. d5 {[%clk 1:25:29]} 6... exf3 {[%clk 0:56:55]} 7. Qxf3 {[%clk
1:25:45]} 7... Bg4 {[%clk 0:56:45]} 8. Qg3 {[%clk 1:26:06]} 8... Qd6 {[%clk
0:54:47]} 9. Bf4 {[%clk 1:26:04]} 9... Qd8 {[%clk 0:53:54]} 10. Bb5+ {[%clk
1:24:52]} 10... Bd7 {[%clk 0:52:47]} 11. O-O-O {[%clk 1:25:05]} 11... Bxb5
{[%clk 0:48:36]} 12. Nxb5 {[%clk 1:25:30]} 12... Nh5 {[%clk 0:48:01]} 13. Qf3
{[%clk 1:24:47]} 13... Nxf4 {[%clk 0:47:56]} 14. Qxf4 {[%clk 1:25:09]} 14... Na6
{[%clk 0:48:05]} 15. Qa4 {[%clk 1:24:59]} 15... Qd7 {[%clk 0:46:45]} 16. Nf3
{[%clk 1:25:27]} 16... f6 {[%clk 0:46:28]} 17. Rhe1 {[%clk 1:24:50]} 17... Kf7
{[%clk 0:45:32]} 18. Qc4 {[%clk 1:22:19]} 18... g6 {[%clk 0:44:05]} 19. d6+
{[%clk 1:20:48]} 19... e6 {[%clk 0:43:15]} 20. Nc7 {[%clk 1:21:11]} 20... Bh6+
{[%clk 0:42:11]} 21. Kb1 {[%clk 1:21:30]} 21... Nxc7 {[%clk 0:41:54]} 22. dxc7
{[%clk 1:21:48]} 22... Qc6 {[%clk 0:42:07]} 23. Rxe6 {[%clk 1:22:09]} 23... Qxe6
{[%clk 0:39:33]} 24. Rd7+ {[%clk 1:22:24]} 1-0

[Variant "Standard"]
[Site "Europe Echecs"]

[Event "Championnat du monde jeunes U10"]
[Date "2024.11.15"]
[White "Sahin, Yusuf Kerem"]
[Black "Shogdzhiev, Roman"]
[WhiteElo "1720"]
[BlackElo "2202"]
[Round "1.2"]
[Result "0-1"]
[TimeControl "5400+30"]

1. d4 {[%clk 1:30:56]} 1... d5 {[%clk 1:30:59]} 2. c4 {[%clk 1:31:17]} 2... c6
{[%clk 1:31:27]} 3. Nf3 {[%clk 1:31:34]} 3... Nf6 {[%clk 1:31:48]} 4. e3 {[%clk
1:31:50]} 4... Bf5 {[%clk 1:32:07]} 5. cxd5 {[%clk 1:31:48]} 5... cxd5 {[%clk
1:31:56]} 6. Nc3 {[%clk 1:32:01]} 6... e6 {[%clk 1:31:57]} 7. Ne5 {[%clk
1:32:10]} 7... Nbd7 {[%clk 1:31:49]} 8. g4 {[%clk 1:31:57]} 8... Bg6 {[%clk
1:29:06]} 9. h4 {[%clk 1:31:56]} 9... h5 {[%clk 1:26:45]} 10. Nxg6 {[%clk
1:32:06]} 10... fxg6 {[%clk 1:27:06]} 11. g5 {[%clk 1:31:07]} 11... Ng8 {[%clk
1:27:30]} 12. Qc2 {[%clk 1:30:33]} 12... Kf7 {[%clk 1:26:28]} 13. Bh3 {[%clk
1:23:46]} 13... Ne7 {[%clk 1:23:27]} 14. Bd2 {[%clk 1:21:39]} 14... Nf5 {[%clk
1:22:10]} 15. Qd3 {[%clk 1:18:48]} 15... Nb6 {[%clk 1:20:56]} 16. Ne2 {[%clk
1:16:35]} 16... Bd6 {[%clk 1:18:59]} 17. e4 {[%clk 1:15:43]} 17... dxe4 {[%clk
1:19:20]} 18. Qxe4 {[%clk 1:16:06]} 18... Qd7 {[%clk 1:19:36]} 19. Nc3 {[%clk
1:11:55]} 19... Bb4 {[%clk 1:15:01]} 20. O-O-O {[%clk 1:04:38]} 20... Bxc3
{[%clk 1:13:25]} 21. Bxc3 {[%clk 1:04:32]} 21... Nd5 {[%clk 1:13:54]} 22. Rd3
{[%clk 1:01:10]} 22... Qc6 {[%clk 1:09:48]} 23. Re1 {[%clk 0:59:23]} 23... Nb4
{[%clk 1:09:48]} 24. Qxc6 {[%clk 0:57:27]} 24... Nxd3+ {[%clk 1:10:05]} 25. Kd2
{[%clk 0:57:50]} 25... bxc6 {[%clk 1:10:04]} 26. Kxd3 {[%clk 0:58:09]} 26...
Rad8 {[%clk 1:09:34]} 27. Re5 {[%clk 0:57:42]} 27... Rd5 {[%clk 1:09:40]} 28.
Bxf5 {[%clk 0:56:54]} 28... Rxe5 {[%clk 1:08:36]} 29. dxe5 {[%clk 0:55:55]}
29... exf5 {[%clk 1:06:02]} 30. Kd4 {[%clk 0:54:17]} 30... Rd8+ {[%clk 1:05:44]}
31. Kc5 {[%clk 0:54:21]} 31... Rd1 {[%clk 1:06:12]} 32. Kxc6 {[%clk 0:54:04]}
32... Ke6 {[%clk 1:06:41]} 33. a4 {[%clk 0:52:04]} 33... Rh1 {[%clk 1:06:55]}
34. Kb7 {[%clk 0:49:21]} 34... Rxh4 {[%clk 1:07:23]} 35. a5 {[%clk 0:49:00]}
35... Ra4 {[%clk 1:07:07]} 36. Kxa7 {[%clk 0:47:34]} 36... h4 {[%clk 1:07:30]}
37. b4 {[%clk 0:47:37]} 37... h3 {[%clk 1:06:53]} 38. b5 {[%clk 0:47:38]} 38...
h2 {[%clk 1:07:22]} 39. b6 {[%clk 0:47:45]} 39... h1=Q {[%clk 1:07:51]} 40. b7
{[%clk 0:48:02]} 40... Qd5 {[%clk 1:08:17]} 41. b8=Q {[%clk 0:48:00]} 41...
Rxa5+ {[%clk 1:08:45]} 42. Bxa5 {[%clk 0:48:14]} 42... Qxa5+ {[%clk 1:09:14]}
43. Kb7 {[%clk 0:48:32]} 43... Qb5+ {[%clk 1:09:41]} 44. Ka7 {[%clk 0:48:12]}
44... Qxb8+ {[%clk 1:09:56]} 45. Kxb8 {[%clk 0:48:34]} 45... Kxe5 {[%clk
1:09:50]} 46. Kc7 {[%clk 0:48:34]} 46... Kf4 {[%clk 1:09:57]} 47. Kd6 {[%clk
0:48:47]} 47... Kxg5 {[%clk 1:10:12]} 48. Ke6 {[%clk 0:48:43]} 48... f4 {[%clk
1:09:55]} 49. Kf7 {[%clk 0:49:01]} 49... Kf5 {[%clk 1:09:55]} 50. Kxg7 {[%clk
0:49:20]} 50... g5 {[%clk 1:10:15]} 51. Kh6 {[%clk 0:49:04]} 51... g4 {[%clk
1:10:36]} 52. Kh5 {[%clk 0:49:15]} 52... g3 {[%clk 1:10:58]} 0-1

[Variant "Standard"]
[Site "Europe Echecs"]

[Event "Championnat du monde jeunes U10"]
[Date "2024.11.15"]
[White "Llari, Marc"]
[Black "Aguike, Toshiya"]
[WhiteElo "2201"]
[BlackElo "1716"]
[Round "1.3"]
[Result "1-0"]
[TimeControl "5400+30"]

1. e4 {[%clk 1:30:59]} 1... e5 {[%clk 1:30:28]} 2. Nf3 {[%clk 1:31:25]} 2... Nc6
{[%clk 1:30:52]} 3. Bb5 {[%clk 1:31:50]} 3... a6 {[%clk 1:31:10]} 4. Ba4 {[%clk
1:32:14]} 4... Nf6 {[%clk 1:31:36]} 5. O-O {[%clk 1:32:36]} 5... b5 {[%clk
1:31:17]} 6. Bb3 {[%clk 1:32:56]} 6... Be7 {[%clk 1:31:39]} 7. Re1 {[%clk
1:27:30]} 7... d6 {[%clk 1:22:58]} 8. c3 {[%clk 1:27:45]} 8... Bg4 {[%clk
1:20:29]} 9. h3 {[%clk 1:27:01]} 9... Bxf3 {[%clk 1:16:28]} 10. Qxf3 {[%clk
1:24:01]} 10... O-O {[%clk 1:15:05]} 11. d3 {[%clk 1:23:25]} 11... Qd7 {[%clk
1:05:59]} 12. Nd2 {[%clk 1:22:43]} 12... Rad8 {[%clk 1:05:42]} 13. a4 {[%clk
1:22:06]} 13... h6 {[%clk 0:42:18]} 14. axb5 {[%clk 1:21:56]} 14... axb5 {[%clk
0:42:06]} 15. Nf1 {[%clk 1:21:58]} 15... d5 {[%clk 0:36:13]} 16. exd5 {[%clk
1:21:29]} 16... Nxd5 {[%clk 0:33:40]} 17. Ng3 {[%clk 1:21:27]} 17... b4 {[%clk
0:27:42]} 18. Nf5 {[%clk 1:19:10]} 18... Bg5 {[%clk 0:23:50]} 19. Bxg5 {[%clk
1:17:28]} 19... hxg5 {[%clk 0:22:06]} 20. Bxd5 {[%clk 1:17:14]} 20... Qxd5
{[%clk 0:20:24]} 21. Qh5 {[%clk 1:15:37]} 21... Qe6 {[%clk 0:15:32]} 22. Qxg5
{[%clk 1:14:31]} 22... Qg6 {[%clk 0:14:47]} 23. Ne7+ {[%clk 1:14:11]} 23... Nxe7
{[%clk 0:15:02]} 24. Qxe7 {[%clk 1:14:37]} 24... bxc3 {[%clk 0:14:58]} 25. bxc3
{[%clk 1:15:00]} 25... c6 {[%clk 0:13:06]} 26. Rxe5 {[%clk 1:14:31]} 26... Qxd3
{[%clk 0:13:03]} 27. Re3 {[%clk 1:13:21]} 27... Qd2 {[%clk 0:11:41]} 28. Ra7
{[%clk 1:11:29]} 28... Qd5 {[%clk 0:09:57]} 29. Rc7 {[%clk 1:07:35]} 29... Rc8
{[%clk 0:03:51]} 30. Rd7 {[%clk 1:07:27]} 30... Qf5 {[%clk 0:03:44]} 31. Rf3
{[%clk 1:07:22]} 31... Qh5 {[%clk 0:03:29]} 32. Qd6 {[%clk 1:05:00]} 32... c5
{[%clk 0:02:43]} 33. Kh2 {[%clk 1:05:06]} 33... c4 {[%clk 0:02:54]} 34. Qd4
{[%clk 1:03:48]} 34... Qh7 {[%clk 0:01:51]} 35. Rfxf7 {[%clk 1:02:59]} 35...
Rxf7 {[%clk 0:01:32]} 36. Rxf7 {[%clk 1:03:23]} 36... Kxf7 {[%clk 0:00:55]} 37.
Qd7+ {[%clk 1:03:47]} 37... Kf6 {[%clk 0:01:04]} 38. Qxc8 {[%clk 1:04:08]} 38...
Qd3 {[%clk 0:01:29]} 39. Qf8+ {[%clk 1:03:32]} 39... Kg6 {[%clk 0:01:23]} 40.
Qf3 {[%clk 1:03:57]} 40... Qxf3 {[%clk 0:00:46]} 41. gxf3 {[%clk 1:04:22]} 41...
Kf5 {[%clk 0:01:11]} 42. Kg3 {[%clk 1:04:47]} 42... g5 {[%clk 0:01:37]} 43. f4
{[%clk 1:05:11]} 43... gxf4+ {[%clk 0:01:48]} 44. Kf3 {[%clk 1:05:40]} 44... Ke5
{[%clk 0:01:32]} 45. h4 {[%clk 1:06:05]} 45... Kf5 {[%clk 0:01:53]} 46. h5 1-0

[Variant "Standard"]
[Site "Europe Echecs"]

[Event "Championnat du monde jeunes U10"]
[Date "2024.11.15"]
[White "Yevsieiev, Yaroslav"]
[Black "Annapureddy, Rheyansh Reddy"]
[WhiteElo "1706"]
[BlackElo "2122"]
[Round "1.4"]
[Result "0-1"]
[TimeControl "5400+30"]

1. e4 {[%clk 1:30:58]} 1... c5 {[%clk 1:30:50]} 2. Nf3 {[%clk 1:31:24]} 2... Nc6
{[%clk 1:31:14]} 3. b4 {[%clk 1:31:43]} 3... cxb4 {[%clk 1:26:20]} 4. d4 {[%clk
1:32:03]} 4... e6 {[%clk 1:26:01]} 5. d5 {[%clk 1:32:25]} 5... Qf6 {[%clk
1:24:52]} 6. c3 {[%clk 1:32:45]} 6... bxc3 {[%clk 1:24:08]} 7. Na3 {[%clk
1:33:09]} 7... exd5 {[%clk 1:22:38]} 8. exd5 {[%clk 1:33:32]} 8... Bxa3 {[%clk
1:20:54]} 9. Bxa3 {[%clk 1:33:56]} 9... c2 {[%clk 1:20:17]} 10. Qc1 {[%clk
1:33:44]} 10... Qc3+ {[%clk 1:19:23]} 11. Nd2 {[%clk 1:34:08]} 11... Qe5+ {[%clk
1:19:26]} 12. Be2 {[%clk 1:34:33]} 12... Nd4 {[%clk 1:19:47]} 13. Kf1 {[%clk
1:34:16]} 13... Qxe2+ {[%clk 1:18:57]} 14. Kg1 {[%clk 1:34:45]} 14... Qd3 {[%clk
1:14:37]} 15. Qe1+ {[%clk 1:34:12]} 15... Kd8 {[%clk 1:12:45]} 16. Qe3 {[%clk
1:32:38]} 16... Ne2+ {[%clk 1:12:21]} 17. Kf1 {[%clk 1:32:58]} 17... c1=Q+
{[%clk 1:12:34]} 18. Bxc1 {[%clk 1:32:54]} 18... Nxc1+ {[%clk 1:12:50]} 0-1

[Variant "Standard"]
[Site "Europe Echecs"]

[Event "Championnat du monde jeunes U10"]
[Date "2024.11.15"]
[White "Zuo, Junyu"]
[Black "von Flottwell, Lionel"]
[WhiteElo "2120"]
[BlackElo "1704"]
[Round "1.5"]
[Result "1-0"]
[TimeControl "5400+30"]

1. e4 {[%clk 1:30:52]} 1... e5 {[%clk 1:30:45]} 2. Bc4 {[%clk 1:30:53]} 2... Nc6
{[%clk 1:30:42]} 3. d3 {[%clk 1:30:31]} 3... Nf6 {[%clk 1:30:47]} 4. Nf3 {[%clk
1:30:35]} 4... Bc5 {[%clk 1:30:47]} 5. c3 {[%clk 1:30:32]} 5... a6 {[%clk
1:30:52]} 6. O-O {[%clk 1:30:37]} 6... d6 {[%clk 1:31:03]} 7. a4 {[%clk
1:30:30]} 7... Ba7 {[%clk 1:29:24]} 8. Nbd2 {[%clk 1:30:30]} 8... h6 {[%clk
1:29:20]} 9. Re1 {[%clk 1:30:36]} 9... g5 {[%clk 1:29:00]} 10. Nf1 {[%clk
1:30:09]} 10... Nh7 {[%clk 1:26:20]} 11. Be3 {[%clk 1:28:48]} 11... h5 {[%clk
1:20:01]} 12. Bxa7 {[%clk 1:26:32]} 12... Nxa7 {[%clk 1:19:07]} 13. d4 {[%clk
1:22:07]} 13... f6 {[%clk 1:18:58]} 14. dxe5 {[%clk 1:14:13]} 14... fxe5 {[%clk
1:19:01]} 15. Nxe5 {[%clk 1:14:14]} 15... g4 {[%clk 1:09:38]} 16. Nf7 {[%clk
1:14:29]} 16... Qf6 {[%clk 1:06:54]} 17. Nxh8 {[%clk 1:13:58]} 17... Ng5 {[%clk
1:04:27]} 18. e5 {[%clk 1:13:21]} 18... dxe5 {[%clk 1:03:41]} 19. Qd5 {[%clk
1:12:25]} 19... Ne6 20. Qxe5 {[%clk 1:11:49]} 20... Qxe5 {[%clk 0:51:27]} 21.
Rxe5 {[%clk 1:12:10]} 21... Nc6 {[%clk 0:43:58]} 22. Re2 {[%clk 1:12:26]} 22...
Nd8 {[%clk 0:42:49]} 23. Ng6 {[%clk 1:09:06]} 23... Kf7 {[%clk 0:41:02]} 24. Nf4
{[%clk 1:09:01]} 24... h4 {[%clk 0:39:33]} 25. Rae1 {[%clk 1:09:06]} 25... b5
{[%clk 0:38:36]} 26. Bxe6+ {[%clk 1:06:16]} 26... Nxe6 {[%clk 0:38:31]} 27. Nxe6
{[%clk 1:06:43]} 27... h3 {[%clk 0:37:30]} 28. Nxc7 {[%clk 1:06:39]} 28... Ra7
{[%clk 0:37:17]} 29. Re7+ {[%clk 1:06:53]} 29... Kg6 {[%clk 0:37:15]} 30. gxh3
{[%clk 1:07:03]} 30... gxh3 {[%clk 0:36:48]} 31. Nd5 {[%clk 1:06:42]} 31... Ra8
{[%clk 0:36:00]} 32. Nb6 {[%clk 1:07:07]} 32... Rb8 {[%clk 0:36:02]} 33. Nxc8
{[%clk 1:05:28]} 33... Rxc8 {[%clk 0:36:13]} 34. R1e6+ {[%clk 1:05:49]} 34...
Kf5 {[%clk 0:34:45]} 35. axb5 {[%clk 1:05:59]} 35... axb5 36. Ng3+ {[%clk
1:05:57]} 36... Kg5 {[%clk 0:32:40]} 37. Rg7+ {[%clk 1:04:11]} 37... Kf4 {[%clk
0:32:25]} 38. Re4+ {[%clk 1:04:35]} 38... Kf3 {[%clk 0:32:23]} 39. Rf7# {[%clk
1:04:52]} 1-0

[Variant "Standard"]
[Site "Europe Echecs"]

[Event "Championnat du monde jeunes U10"]
[Date "2024.11.15"]
[White "Schettini Acuna, Massimo Matteo"]
[Black "Kolodziejczyk, Boris"]
[WhiteElo "1703"]
[BlackElo "2115"]
[Round "1.6"]
[Result "1/2-1/2"]
[TimeControl "5400+30"]

1. e4 {[%clk 1:30:57]} 1... c5 {[%clk 1:30:52]} 2. Nf3 {[%clk 1:30:57]} 2... Nc6
{[%clk 1:31:15]} 3. d4 {[%clk 1:30:46]} 3... cxd4 {[%clk 1:31:40]} 4. Nxd4
{[%clk 1:30:49]} 4... Nf6 {[%clk 1:31:58]} 5. Nc3 {[%clk 1:30:31]} 5... e5
{[%clk 1:30:58]} 6. Ndb5 {[%clk 1:30:21]} 6... d6 {[%clk 1:31:17]} 7. Bg5 {[%clk
1:30:22]} 7... a6 {[%clk 1:31:39]} 8. Na3 {[%clk 1:30:23]} 8... b5 {[%clk
1:32:04]} 9. Nd5 {[%clk 1:30:43]} 9... Be7 {[%clk 1:32:24]} 10. Bxf6 {[%clk
1:30:57]} 10... Bxf6 {[%clk 1:32:52]} 11. c3 {[%clk 1:31:10]} 11... Ne7 {[%clk
1:32:30]} 12. Nxf6+ {[%clk 1:28:07]} 12... gxf6 {[%clk 1:32:26]} 13. g3 {[%clk
1:20:52]} 13... Bb7 {[%clk 1:31:01]} 14. Bg2 {[%clk 1:19:25]} 14... f5 {[%clk
1:29:59]} 15. f3 {[%clk 1:16:35]} 15... Qb6 {[%clk 1:26:05]} 16. Qe2 {[%clk
1:13:46]} 16... O-O-O {[%clk 1:21:41]} 17. exf5 {[%clk 1:12:07]} 17... Kb8
{[%clk 1:20:36]} 18. Bh3 Bc8 {[%clk 1:00:54]} 19. f6 {[%clk 0:43:04]} 19... Nd5
{[%clk 0:55:01]} 20. Bxc8 {[%clk 0:42:48]} 20... Rxc8 {[%clk 0:55:17]} 21. Nc2
{[%clk 0:38:08]} 21... Nxf6 {[%clk 0:54:22]} 22. O-O-O {[%clk 0:37:34]} 22...
Rhd8 {[%clk 0:47:57]} 23. Rd2 {[%clk 0:36:12]} 23... a5 {[%clk 0:38:15]} 24. Kb1
{[%clk 0:32:16]} 24... b4 {[%clk 0:34:40]} 25. cxb4 {[%clk 0:30:29]} 25... axb4
{[%clk 0:34:49]} 26. Qe3 {[%clk 0:29:24]} 26... Rc5 {[%clk 0:26:10]} 27. Qg5
{[%clk 0:27:35]} 27... Ne8 {[%clk 0:17:21]} 28. Nxb4 {[%clk 0:25:46]} 28... f6
{[%clk 0:17:02]} 29. Qh4 {[%clk 0:23:22]} 29... d5 {[%clk 0:16:59]} 30. Nd3
{[%clk 0:22:53]} 30... Rc4 {[%clk 0:15:33]} 31. Qh6 {[%clk 0:19:23]} 31... Rd4
{[%clk 0:14:08]} 32. Rhd1 {[%clk 0:18:30]} 32... e4 {[%clk 0:11:28]} 33. fxe4
{[%clk 0:17:50]} 33... dxe4 {[%clk 0:11:25]} 34. Nc1 {[%clk 0:16:42]} 34... Rxd2
{[%clk 0:11:14]} 35. Rxd2 {[%clk 0:17:01]} 35... Rxd2 {[%clk 0:11:11]} 36. Qxd2
{[%clk 0:17:23]} 36... Nd6 {[%clk 0:10:39]} 37. Qd5 {[%clk 0:16:22]} 37... Qc7
{[%clk 0:10:22]} 38. Qb3+ {[%clk 0:16:20]} 38... Ka8 {[%clk 0:09:58]} 39. Qc2
{[%clk 0:15:42]} 39... Qd7 {[%clk 0:08:42]} 40. Ne2 {[%clk 0:15:23]} 40... Qb5
{[%clk 0:08:18]} 41. Nc3 {[%clk 0:13:29]} 41... Qf1+ {[%clk 0:08:07]} 42. Qd1
{[%clk 0:13:22]} 42... Qa6 {[%clk 0:07:02]} 43. Qd5+ {[%clk 0:13:37]} 43... Ka7
{[%clk 0:07:08]} 44. a4 {[%clk 0:12:30]} 44... f5 {[%clk 0:06:01]} 45. Nb5+
{[%clk 0:12:08]} 45... Nxb5 {[%clk 0:06:19]} 46. axb5 {[%clk 0:12:28]} 46... Qg6
{[%clk 0:05:45]} 47. Qd7+ {[%clk 0:12:01]} 47... Kb6 {[%clk 0:06:00]} 48. Kc2
{[%clk 0:11:11]} 48... f4 {[%clk 0:04:31]} 49. gxf4 {[%clk 0:09:27]} 49... e3+
{[%clk 0:04:15]} 50. f5 {[%clk 0:06:59]} 50... Qg2+ {[%clk 0:04:37]} 51. Kc3
{[%clk 0:06:47]} 51... e2 {[%clk 0:04:45]} 52. Qd6+ {[%clk 0:06:46]} 52... Kxb5
{[%clk 0:04:01]} 53. Qb8+ {[%clk 0:06:46]} 53... Ka6 {[%clk 0:04:03]} 54. Qd6+
{[%clk 0:06:55]} 54... Kb5 {[%clk 0:03:53]} 55. Qb8+ {[%clk 0:06:56]} 55... Ka6
{[%clk 0:04:16]} 56. Qd6+ {[%clk 0:06:41]} 56... Kb5 1/2-1/2

[Variant "Standard"]
[Site "Europe Echecs"]

[Event "Championnat du monde jeunes U10"]
[Date "2024.11.15"]
[White "Ilko-Toth, Andras"]
[Black "Tenuun, Tseesuren"]
[WhiteElo "2115"]
[BlackElo "1702"]
[Round "1.7"]
[Result "1-0"]
[TimeControl "5400+30"]

1. d4 {[%clk 1:30:56]} 1... d5 {[%clk 1:30:44]} 2. Nf3 {[%clk 1:31:15]} 2... Nf6
{[%clk 1:30:54]} 3. g3 {[%clk 1:31:28]} 3... c5 {[%clk 1:27:32]} 4. Bg2 {[%clk
1:31:21]} 4... Nc6 {[%clk 1:24:41]} 5. O-O {[%clk 1:31:23]} 5... Bf5 {[%clk
1:24:21]} 6. c4 {[%clk 1:28:06]} 6... e6 {[%clk 1:21:39]} 7. Nc3 {[%clk
1:24:05]} 7... Be7 {[%clk 1:07:26]} 8. cxd5 {[%clk 1:11:38]} 8... exd5 9. Bg5
{[%clk 1:03:20]} 9... O-O {[%clk 1:02:06]} 10. Bxf6 {[%clk 0:52:27]} 10... Bxf6
{[%clk 0:58:45]} 11. dxc5 {[%clk 0:51:31]} 11... Bxc3 {[%clk 0:55:47]} 12. bxc3
{[%clk 0:50:13]} 12... Be4 {[%clk 0:54:53]} 13. Nd4 {[%clk 0:39:12]} 13... Bxg2
{[%clk 0:54:52]} 14. Kxg2 {[%clk 0:39:11]} 14... Qa5 {[%clk 0:54:40]} 15. Nb3
{[%clk 0:34:35]} 15... Qxc3 {[%clk 0:52:36]} 16. Qxd5 {[%clk 0:34:23]} 16...
Rfe8 {[%clk 0:46:51]} 17. Qf3 {[%clk 0:31:10]} 17... Qc2 {[%clk 0:46:37]} 18. e3
{[%clk 0:29:45]} 18... Rab8 {[%clk 0:23:28]} 19. Kg1 {[%clk 0:23:26]} 19... Ne5
{[%clk 0:19:21]} 20. Qd5 {[%clk 0:22:51]} 20... Qf5 {[%clk 0:15:45]} 21. Nd4
{[%clk 0:22:16]} 21... Qf6 {[%clk 0:13:27]} 22. Rab1 {[%clk 0:20:43]} 22... Red8
{[%clk 0:10:43]} 23. Qe4 {[%clk 0:19:51]} 23... Rxd4 24. exd4 {[%clk 0:20:02]}
24... Nf3+ {[%clk 0:05:54]} 25. Kg2 {[%clk 0:19:55]} 25... Nd2 {[%clk 0:06:03]}
26. Rxb7 {[%clk 0:18:43]} 26... Rd8 {[%clk 0:06:26]} 27. Qe7 {[%clk 0:15:36]}
27... Qxd4 {[%clk 0:04:34]} 28. Qxf7+ {[%clk 0:13:03]} 28... Kh8 {[%clk
0:04:50]} 29. Re1 {[%clk 0:12:14]} 29... h6 {[%clk 0:02:09]} 30. c6 {[%clk
0:10:20]} 30... Qc5 {[%clk 0:00:48]} 31. Qxg7# 1-0

[Variant "Standard"]
[Site "Europe Echecs"]

[Event "Championnat du monde jeunes U10"]
[Date "2024.11.15"]
[White "DAmato, Raffaele"]
[Black "Zhu, Linxi"]
[WhiteElo "1695"]
[BlackElo "2100"]
[Round "1.8"]
[Result "0-1"]
[TimeControl "5400+30"]

1. d4 {[%clk 1:30:57]} 1... Nf6 {[%clk 1:30:55]} 2. Nf3 {[%clk 1:31:19]} 2... e6
{[%clk 1:31:18]} 3. e3 {[%clk 1:31:13]} 3... c5 {[%clk 1:31:39]} 4. Nbd2 {[%clk
1:30:37]} 4... Nc6 {[%clk 1:31:45]} 5. c3 {[%clk 1:29:49]} 5... d5 {[%clk
1:31:31]} 6. Bd3 {[%clk 1:29:05]} 6... Be7 {[%clk 1:30:23]} 7. O-O {[%clk
1:29:15]} 7... O-O {[%clk 1:30:17]} 8. Bc2 {[%clk 1:27:53]} 8... b6 {[%clk
1:30:02]} 9. e4 {[%clk 1:26:55]} 9... dxe4 {[%clk 1:24:52]} 10. Nxe4 {[%clk
1:27:10]} 10... Ba6 {[%clk 1:20:46]} 11. Re1 {[%clk 1:26:13]} 11... cxd4 {[%clk
1:19:33]} 12. cxd4 {[%clk 1:26:26]} 12... Bb7 {[%clk 1:15:33]} 13. b3 {[%clk
1:24:18]} 13... Nb4 {[%clk 1:13:33]} 14. Bb2 {[%clk 1:21:50]} 14... Nxc2 {[%clk
1:11:55]} 15. Nxf6+ {[%clk 1:21:52]} 15... Bxf6 {[%clk 1:12:14]} 16. Qxc2 {[%clk
1:22:07]} 16... Bxf3 {[%clk 1:12:39]} 17. gxf3 {[%clk 1:22:28]} 17... Bxd4
{[%clk 1:08:47]} 18. Bxd4 {[%clk 1:21:53]} 18... Qxd4 {[%clk 1:09:03]} 19. Rad1
{[%clk 1:21:42]} 19... Qf6 {[%clk 1:08:41]} 20. Qe2 {[%clk 1:21:42]} 20... Rac8
{[%clk 1:08:44]} 21. Kh1 {[%clk 1:21:45]} 21... Rc3 {[%clk 1:07:34]} 22. Rd3
{[%clk 1:21:24]} 22... Rfc8 {[%clk 1:06:45]} 23. Red1 {[%clk 1:21:23]} 23... g6
{[%clk 1:06:50]} 24. f4 {[%clk 1:15:15]} 24... Rxd3 {[%clk 1:06:51]} 25. Rxd3
{[%clk 1:13:54]} 25... Qxf4 {[%clk 1:06:30]} 26. Rf3 {[%clk 1:12:58]} 26... Rc1+
{[%clk 1:06:55]} 27. Kg2 {[%clk 1:13:21]} 27... Qg4+ {[%clk 1:07:23]} 28. Rg3
{[%clk 1:12:05]} 28... Qxe2 {[%clk 1:07:49]} 0-1

[Variant "Standard"]
[Site "Europe Echecs"]

[Event "Championnat du monde jeunes U10"]
[Date "2024.11.15"]
[White "Deepak Ambattu, Rithvik"]
[Black "Skouroupathis, Kyriakos"]
[WhiteElo "2063"]
[BlackElo "1695"]
[Round "1.9"]
[Result "1-0"]
[TimeControl "5400+30"]

1. e4 {[%clk 1:30:57]} 1... c6 {[%clk 1:30:55]} 2. Nc3 {[%clk 1:31:22]} 2... d5
{[%clk 1:31:20]} 3. Nf3 {[%clk 1:31:51]} 3... Bg4 {[%clk 1:31:43]} 4. h3 {[%clk
1:32:17]} 4... Bxf3 {[%clk 1:32:07]} 5. Qxf3 {[%clk 1:32:44]} 5... e6 {[%clk
1:32:08]} 6. Be2 {[%clk 1:33:08]} 6... Bc5 {[%clk 1:32:20]} 7. Qg3 {[%clk
1:33:32]} 7... Bd4 {[%clk 1:32:34]} 8. d3 {[%clk 1:33:13]} 8... Nd7 {[%clk
1:30:53]} 9. Be3 {[%clk 1:32:19]} 9... Be5 {[%clk 1:21:57]} 10. f4 {[%clk
1:29:38]} 10... Bf6 {[%clk 1:20:15]} 11. Qf2 {[%clk 1:23:48]} 11... Be7 {[%clk
1:12:54]} 12. O-O {[%clk 1:20:47]} 12... Nb6 {[%clk 1:04:13]} 13. Bd4 {[%clk
1:09:44]} 13... Nf6 {[%clk 1:00:58]} 14. e5 {[%clk 1:08:44]} 14... Nfd7 {[%clk
1:00:35]} 15. f5 Rf8 {[%clk 0:56:56]} 16. fxe6 {[%clk 0:55:05]} 16... fxe6
{[%clk 0:57:16]} 17. Qg3 {[%clk 0:53:36]} 17... g6 {[%clk 0:57:22]} 18. Be3
{[%clk 0:49:33]} 18... Qc7 {[%clk 0:53:15]} 19. d4 {[%clk 0:48:18]} 19... O-O-O
{[%clk 0:49:27]} 20. Qg4 {[%clk 0:46:09]} 20... Rxf1+ {[%clk 0:44:27]} 21. Rxf1
{[%clk 0:46:25]} 21... Nf8 {[%clk 0:43:37]} 22. Rf7 {[%clk 0:46:11]} 22... Rd7
{[%clk 0:43:00]} 23. Bh6 {[%clk 0:41:59]} 23... Bb4 {[%clk 0:39:57]} 24. Rxf8+
{[%clk 0:42:00]} 24... Bxf8 {[%clk 0:40:18]} 25. Bxf8 {[%clk 0:42:26]} 25... Qd8
{[%clk 0:40:27]} 26. Bd6 {[%clk 0:41:24]} 26... Qe8 {[%clk 0:39:39]} 27. b3
{[%clk 0:40:56]} 27... Rf7 {[%clk 0:38:13]} 28. Na4 {[%clk 0:37:31]} 28... Nxa4
{[%clk 0:37:49]} 29. bxa4 {[%clk 0:37:24]} 29... Kd7 {[%clk 0:37:33]} 30. c4
{[%clk 0:34:14]} 30... h5 {[%clk 0:32:35]} 31. Qg3 {[%clk 0:34:06]} 31... Rg7
{[%clk 0:31:02]} 32. cxd5 {[%clk 0:33:52]} 32... exd5 {[%clk 0:31:21]} 33. Bxh5
{[%clk 0:34:04]} 33... Qg8 {[%clk 0:30:30]} 34. Bg4+ {[%clk 0:33:17]} 34... Kd8
{[%clk 0:29:52]} 35. e6 {[%clk 0:32:28]} 35... g5 {[%clk 0:29:21]} 36. Qe5
{[%clk 0:32:17]} 36... Rg6 {[%clk 0:29:27]} 37. Bc5 {[%clk 0:31:14]} 1-0

[Variant "Standard"]
[Site "Europe Echecs"]